fUST/lending_fUST_20250926
["ID","MTS","AMOUNT","RATE_DAILY","PERIOD"]
[387820047,1758889846675,-480.0,0.00039452,30]
[387820048,1758889846686,-480.0,0.00039452,30]
[387820049,1758889846695,-480.0,0.00039452,3]
[387820050,1758889846704,-480.0,0.00039452,30]
[387820051,1758889846713,-480.0,0.00039452,30]
[387820052,1758889846723,-480.0,0.00039452,30]
[387820053,1758889846732,-480.0,0.00039452,30]
[387820054,1758889846741,-480.0,0.00039452,30]
[387820055,1758889846751,-480.0,0.00039452,30]
[387820056,1758889846761,-480.0,0.00039452,30]
[387820057,1758889846770,-480.0,0.00039452,30]
[387820058,1758889846780,-480.0,0.00039452,30]
[387820059,1758889846790,-480.0,0.00039452,30]
[387820060,1758889846800,-1000.0,0.00039468,5]
[387820061,1758889846810,-1278.94002606,0.00039489,2]
[387820062,1758889846819,-410.0,0.00039529,2]
[387820063,1758889846829,-383.88,0.00039716,3]
[387820064,1758889846839,-1000.0,0.00039721,5]
[387820065,1758889846852,-480.0,0.00039726,30]
[387820066,1758889846862,-480.0,0.00039726,30]
[387820067,1758889846870,-480.0,0.00039726,30]
[387820068,1758889846879,-480.0,0.00039726,30]
[387820069,1758889846889,-480.0,0.00039726,30]
[387820070,1758889846898,-480.0,0.00039726,30]
[387820071,1758889846908,-480.0,0.00039726,30]
[387820072,1758889846924,-480.0,0.00039726,30]
[387820073,1758889846933,-480.0,0.00039726,30]
[387820074,1758889846943,-480.0,0.00039726,30]
[387820075,1758889846953,-480.0,0.00039726,30]
[387820076,1758889846963,-480.0,0.00039726,30]
[387820077,1758889846976,-480.0,0.00039726,30]
[387820078,1758889846986,-167.73493807,0.00039726,30]
[387820079,1758889846996,-502.2229877,0.00039726,30]
[387820080,1758889847006,-480.0,0.00039726,30]
[387820081,1758889847016,-480.0,0.00039726,30]
[387820082,1758889847026,-480.0,0.00039726,30]
[387820083,1758889847036,-480.0,0.00039726,30]
[387820084,1758889847045,-480.0,0.00039726,30]
[387820085,1758889847055,-480.0,0.00039726,30]
[387820086,1758889847065,-480.0,0.00039726,30]
[387820087,1758889847075,-480.0,0.00039726,30]
[387820088,1758889847085,-480.0,0.00039726,30]
[387820089,1758889847095,-480.0,0.00039726,30]
[387820090,1758889847106,-480.0,0.00039726,30]
[387820091,1758889847117,-607.83247067,0.00039726,30]
[387820092,1758889847126,-498.36139886,0.00039726,30]
[387820093,1758889847135,-590.6,0.00039726,30]
[387820094,1758889847146,-480.0,0.00039726,30]
[387820095,1758889847155,-480.0,0.00039726,30]
[387820096,1758889847171,-480.0,0.00039726,30]
[387820097,1758889847183,-480.0,0.00039726,30]
[387820098,1758889847194,-480.0,0.00039726,30]
[387820099,1758889847204,-480.0,0.00039726,30]
[387820100,1758889847214,-480.0,0.00039726,30]
[387820101,1758889847223,-480.0,0.00039726,30]
[387820102,1758889847233,-480.0,0.00039726,30]
[387820103,1758889847242,-480.0,0.00039726,30]
[387820104,1758889847252,-480.0,0.00039726,30]
[387820105,1758889847261,-480.0,0.00039726,30]
[387820106,1758889847271,-480.0,0.00039726,30]
[387820107,1758889847280,-480.0,0.00039726,30]
[387820108,1758889847290,-480.0,0.00039726,30]
[387820109,1758889847300,-480.0,0.00039726,30]
[387820110,1758889847310,-480.0,0.00039726,30]
[387820111,1758889847319,-480.0,0.00039726,30]
[387820112,1758889847329,-480.0,0.00039726,30]
[387820113,1758889847339,-480.0,0.00039726,30]
[387820114,1758889847349,-480.0,0.00039726,30]
[387820115,1758889847359,-480.0,0.00039726,30]
[387820116,1758889847368,-480.0,0.00039726,30]
[387820117,1758889847377,-480.0,0.00039726,30]
[387820118,1758889847387,-480.0,0.00039726,30]
[387820119,1758889847396,-480.0,0.00039726,3]
[387820120,1758889847405,-480.0,0.00039726,30]
[387820121,1758889847421,-480.0,0.00039726,30]
[387820122,1758889847430,-480.0,0.00039726,30]
[387820123,1758889847439,-480.0,0.00039726,30]
[387820124,1758889847449,-480.0,0.00039726,30]
[387820125,1758889847458,-480.0,0.00039726,30]
[387820126,1758889847468,-480.0,0.00039726,30]
[387820127,1758889847478,-223.08,0.00039726,30]
[387820128,1758889847487,-336.91451713,0.00039733,34]
[387820129,1758889847497,-500.90471863,0.00039768,5]
[387820130,1758889847506,-1000.0,0.00039954,5]
[387820131,1758889847516,-395.90823976,0.00039954,5]
[387820132,1758889847526,-1000.0,0.00039985,5]
[387820133,1758889847535,-500.0,0.00039999,120]
[387820134,1758889847544,-480.0,0.0004,30]
[387820135,1758889847554,-480.0,0.0004,30]
[387820136,1758889847563,-480.0,0.0004,30]
[387820137,1758889847573,-480.0,0.0004,30]
[387820138,1758889847582,-480.0,0.0004,30]
[387820139,1758889847591,-480.0,0.0004,30]
[387820140,1758889847600,-480.0,0.0004,30]
[387820141,1758889847610,-480.0,0.0004,30]
[387820142,1758889847620,-480.0,0.0004,30]
[387820143,1758889847629,-480.0,0.0004,30]
[387820144,1758889847639,-480.0,0.0004,30]
[387820145,1758889847648,-480.0,0.0004,30]
[387820146,1758889847657,-480.0,0.0004,30]
[387820147,1758889847675,-480.0,0.0004,30]
[387820148,1758889847684,-532.23538846,0.0004,30]
[387820149,1758889847693,-531.91605542,0.0004,30]
[387820150,1758889847702,-480.0,0.0004,30]
[387820151,1758889847711,-480.0,0.0004,30]
[387820152,1758889847720,-480.0,0.0004,30]
[387820153,1758889847729,-480.0,0.0004,30]
[387820154,1758889847738,-480.0,0.0004,30]
[387820155,1758889847747,-480.0,0.0004,30]
[387820156,1758889847757,-480.0,0.0004,30]
[387820157,1758889847766,-480.0,0.0004,30]
[387820158,1758889847775,-480.0,0.0004,30]
[387820159,1758889847785,-480.0,0.0004,30]
[387820160,1758889847794,-572.31039267,0.0004,30]
[387820161,1758889847804,-480.0,0.0004,30]
[387820162,1758889847813,-480.0,0.0004,30]
[387820163,1758889847823,-480.0,0.0004,30]
[387820164,1758889847832,-480.0,0.0004,30]
[387820165,1758889847841,-480.0,0.0004,30]
[387820166,1758889847850,-480.0,0.0004,30]
[387820167,1758889847859,-480.0,0.0004,30]
[387820168,1758889847868,-215.96398275,0.0004,30]
[387820169,1758889847877,-480.0,0.0004,30]
[387820170,1758889847886,-480.0,0.0004,30]
[387820171,1758889847895,-480.0,0.0004,30]
[387820172,1758889847904,-480.0,0.0004,30]
[387820173,1758889847919,-480.0,0.0004,30]
[387820174,1758889847928,-480.0,0.0004,30]
[387820175,1758889847937,-480.0,0.0004,30]
[387820176,1758889847946,-480.0,0.0004,30]
[387820177,1758889847956,-480.0,0.0004,30]
[387820178,1758889847967,-480.0,0.0004,30]
[387820179,1758889847977,-480.0,0.0004,30]
[387820180,1758889847986,-480.0,0.0004,3]
[387820181,1758889847995,-480.0,0.0004,30]
[387820182,1758889848004,-480.0,0.0004,30]
[387820183,1758889848014,-480.0,0.0004,30]
[387820184,1758889848025,-480.0,0.0004,30]
[387820185,1758889848035,-480.0,0.0004,30]
[387820186,1758889848044,-480.0,0.0004,30]
[387820187,1758889848054,-480.0,0.0004,30]
[387820188,1758889848063,-200.0,0.0004,120]
[387820189,1758889848073,-500.0,0.00040108,5]
[387820190,1758889848082,-500.0,0.00040108,5]
[387820191,1758889848091,-500.0,0.00040108,5]
[387820192,1758889848104,-500.0,0.00040108,5]
[387820193,1758889848113,-500.0,0.00040108,5]
[387820194,1758889848123,-1000.0,0.00040268,5]
[387820195,1758889848132,-480.0,0.00040273,30]
[387820196,1758889848142,-480.0,0.00040273,30]
[387820197,1758889848151,-571.39598081,0.00040273,30]
[387820198,1758889848161,-480.0,0.00040273,30]
[387820199,1758889848180,-480.0,0.00040273,30]
[387820200,1758889848266,-480.0,0.00040273,30]
[387820201,1758889848276,-480.0,0.00040273,30]
[387820202,1758889848286,-480.0,0.00040273,30]
[387820203,1758889848295,-480.0,0.00040273,30]
[387820204,1758889848305,-480.0,0.00040273,30]
[387820205,1758889848314,-480.0,0.00040273,30]
[387820206,1758889848324,-480.0,0.00040273,30]
[387820207,1758889848333,-480.0,0.00040273,30]
[387820208,1758889848342,-480.0,0.00040273,30]
[387820209,1758889848351,-480.0,0.00040273,30]
[387820210,1758889848361,-480.0,0.00040273,30]
[387820211,1758889848370,-522.48,0.00040273,30]
[387820212,1758889848380,-480.0,0.00040273,30]
[387820213,1758889848390,-431.20842233,0.00040273,30]
[387820214,1758889848400,-480.0,0.00040273,30]
[387820215,1758889848410,-480.0,0.00040273,30]
[387820216,1758889848426,-220.15,0.00040273,30]
[387820217,1758889848436,-311.01,0.00040273,3]
[387820218,1758889848445,-480.0,0.00040273,30]
[387820219,1758889848457,-480.0,0.00040273,30]
[387820220,1758889848467,-1278.94002606,0.00040447,2]
[387820221,1758889848477,-1000.0,0.00040533,5]
[387820222,1758889848487,-480.0,0.00040547,30]
[387820223,1758889848497,-480.0,0.00040547,30]
[387820224,1758889848507,-480.0,0.00040547,30]
[387820225,1758889848517,-480.0,0.00040547,30]
[387820226,1758889848528,-480.0,0.00040547,30]
[387820227,1758889848537,-480.0,0.00040547,30]
[387820228,1758889848547,-480.0,0.00040547,30]
[387820229,1758889848556,-480.0,0.00040547,30]
[387820230,1758889848566,-480.0,0.00040821,30]
[387820231,1758889848575,-480.0,0.00040821,30]
[387820232,1758889848585,-480.0,0.00040821,30]
[387820233,1758889848595,-480.0,0.00040821,30]
[387820234,1758889848605,-480.0,0.00040821,30]
[387820236,1758889848615,-480.0,0.00040821,30]
[387820237,1758889848624,-480.0,0.00040821,30]
[387820238,1758889848635,-480.0,0.00040821,30]
[387820239,1758889848645,-500.0,0.00040821,120]
[387820240,1758889848655,-336.91451713,0.00040973,36]
[387820241,1758889848671,-1172.44730741,0.00041,120]
[387820242,1758889848682,-480.0,0.00041094,30]
[387820243,1758889848694,-480.0,0.00041094,30]
[387820244,1758889848705,-480.0,0.00041095,120]
[387820245,1758889848715,-480.0,0.00041095,120]
[387820246,1758889848726,-480.0,0.00041095,120]
[387820247,1758889848742,-480.0,0.00041095,120]
[387820249,1758889848756,-554.13,0.00041095,120]
[387820251,1758889848767,-480.0,0.00041095,120]
[387820252,1758889848778,-480.0,0.00041095,120]
[387820253,1758889848788,-480.0,0.00041095,120]
[387820254,1758889848797,-50000.0,0.00041096,120]
[387820255,1758889848808,-639.21,0.000411,14]
[387820257,1758889848818,-500.0,0.00041111,10]
[387820258,1758889848828,-6726.0,0.00041147,120]
[387820259,1758889848838,-480.0,0.00041369,120]
[387820260,1758889848848,-480.0,0.00041369,120]
[387820261,1758889848858,-480.0,0.00041369,120]
[387820262,1758889848868,-480.0,0.00041369,120]
[387820263,1758889848877,-353.93,0.00041369,120]
[387820264,1758889848887,-480.0,0.00041369,120]
[387820265,1758889848897,-480.0,0.00041369,120]
[387820266,1758889848907,-480.0,0.00041643,120]
[387820267,1758889848922,-480.0,0.00041643,120]
[387820268,1758889848932,-480.0,0.00041643,120]
[387820269,1758889848941,-258.91,0.00041643,120]
[387820270,1758889848951,-199.55,0.00041643,120]
[387820271,1758889848960,-446.96,0.00041643,120]
[387820272,1758889848970,-626.8012646,0.00041802,2]
[387820273,1758889848979,-480.0,0.00041917,120]
[387820274,1758889848992,-480.0,0.00041917,120]
[387820275,1758889849002,-480.0,0.00041917,120]
[387820276,1758889849011,-200.0,0.00042,120]
[387820277,1758889849021,-480.0,0.00042191,120]
[387820278,1758889849031,-480.0,0.00042191,120]
[387820279,1758889849040,-480.0,0.00042191,120]
[387820280,1758889849050,-336.91451713,0.00042213,39]
[387820281,1758889849059,-546.81999908,0.00042432,28]
[387820282,1758889849070,-480.0,0.00042465,120]
[387820283,1758889849079,-480.0,0.00042465,120]
[387820284,1758889849090,-480.0,0.00042465,120]
[387820285,1758889849103,-480.0,0.00042739,120]
[387820286,1758889849113,-480.0,0.00042739,120]
[387820287,1758889849123,-480.0,0.00042739,120]
[387820288,1758889849133,-1582.351368,0.00042987,60]
[387820289,1758889849142,-480.0,0.00043013,120]
[387820290,1758889849152,-390.26,0.00043013,120]
[387820291,1758889849161,-503.52,0.00043013,120]
[387820292,1758889849179,-480.0,0.00043287,120]
[387820293,1758889849189,-344.2109391,0.00043379,2]
[387820294,1758889849198,-2000.0,0.000434,34]
[387820295,1758889849208,-277.2,0.000434,21]
[387820296,1758889849218,-336.91451713,0.00043452,42]
[387820297,1758889849227,-223.3883538,0.00043461,120]
[387820298,1758889849237,-362533.99754321,0.0004349,14]
[387820299,1758889849303,-593.2364271,0.0004349,14]
[387820300,1758889849315,-760.99378999,0.0004349,14]
[387820301,1758889849446,-347.0,0.00029703,2]
[387820302,1758889849457,-1000.0,0.000304,5]
[387820303,1758889849467,-1000.0,0.000309,5]
[387820304,1758889849477,-168.0,0.00034601,2]
[387820305,1758889849488,-168.0,0.00035354,2]
[387820306,1758889849498,-200.0,0.00038,120]
[387820307,1758889849508,-981.87,0.00039529,2]
[387820308,1758889849518,-6975.14342942,0.0004349,14]
[387820309,1758889849549,-81853.12523769,0.0004349,14]
[387820310,1758889849562,-812.44347529,0.0004349,14]
[387820311,1758889849574,-5375.44746854,0.0004349,14]
[387820312,1758889849586,-415.07431893,0.0004349,14]
[387820313,1758889849651,-168.0,0.00034198,2]
[387820314,1758889849661,-1567.59999992,0.0004349,14]
[387820315,1758889849681,-880810.3882849,0.0004349,14]
[387820316,1758889849691,-9260.35313144,0.000435,3]
[387820317,1758889849702,-185450.71671618,0.000435,120]
[387820318,1758889849714,-8616.42758682,0.000435,120]
[387820324,1758889864684,200.0,0.00031243,120]
[387820325,1758889887391,406.0,0.00031243,120]
[387820340,1758890508231,155.5149658,0.00031295,120]
[387820341,1758890531834,150.0,0.0002,10]
[387820342,1758890557702,4063.33660066,0.000197,10]
[387820344,1758890849224,-210.15813308,0.00019308,2]
[387820345,1758890853833,-160.42024546,0.00019308,2]
[387820346,1758890856742,-210.85905897,0.00019308,2]
[387820347,1758890863068,-296.43717973,0.00019308,2]
[387820348,1758890867183,-290.29063481,0.00019308,2]
[387820349,1758890870839,-179.42085529,0.00019308,2]
[387820350,1758890875161,-203.45255763,0.00019308,2]
[387820351,1758890878059,-341.33378869,0.00019308,2]
[387820352,1758890883834,-240.11461042,0.00019308,2]
[387820353,1758890886852,-194.04383793,0.00019308,2]
[387820354,1758890890560,-204.06731607,0.000193,2]
[387820355,1758890892716,-95.93268393,0.000193,2]
[387820356,1758890892738,-163.90713401,0.00019308,2]
[387820357,1758890895378,-253.34067143,0.00019308,2]
[387820358,1758890898016,-184.7570488,0.00019308,2]
[387820359,1758890903186,-152.03810393,0.000193,2]
[387820360,1758890907277,-147.96189607,0.000193,2]
[387820361,1758890907299,-52.65359457,0.00019308,2]
[387820363,1758890913772,-299.93561258,0.00019308,2]
[387820364,1758890924738,-275.70701699,0.00019308,2]
[387820365,1758890926990,-169.91,0.00019308,2]
[387820366,1758890930161,-165.48631378,0.00019308,2]
[387820367,1758890934669,-190.49204894,0.00019308,2]
[387820398,1758891032375,-300.0,0.000193,2]
[387820399,1758891032384,-300.0,0.000193,2]
[387820400,1758891032394,-300.0,0.000193,2]
[387820401,1758891032403,-332.98099519,0.00019308,2]
[387820402,1758891032415,-584.2986617,0.00019308,2]
[387820403,1758891032424,-170.62,0.000197,2]
[387820404,1758891032435,-170.63,0.000197,2]
[387820405,1758891032444,-150.0,0.000197,2]
[387820406,1758891032457,-1126.66339934,0.000197,10]
[387820407,1758891032470,-160.0,0.00019893,2]
[387820408,1758891032480,-1200.0,0.00019899,2]
[387820409,1758891032490,-1444.68242914,0.000199,2]
[387820410,1758891032501,-300.0,0.00019998,2]
[387820411,1758891032511,-1200.0,0.00019999,2]
[387820412,1758891032520,-150.0,0.0002,2]
[387820413,1758891032531,-248.13,0.0002,2]
[387820414,1758891032541,-1444.68242888,0.0002114,2]
[387820415,1758891032550,-344.0,0.00021776,2]
[387820416,1758891032560,-410.0,0.00021777,2]
[387820417,1758891032569,-1444.68242888,0.00022379,2]
[387820418,1758891032579,-160.0,0.00023332,2]
[387820419,1758891032588,-160.0,0.00023333,2]
[387820420,1758891032597,-3621.19843662,0.00023604,2]
[387820421,1758891032628,-1414.45484878,0.00023604,2]
[387820422,1758891032637,-160.0,0.00023612,2]
[387820423,1758891032647,-160.0,0.00023612,2]
[387820424,1758891032656,-1444.68242888,0.00023619,2]
[387820425,1758891032666,-3976.412433,0.00023878,2]
[387820426,1758891032675,-666.0,0.00024039,2]
[387820427,1758891032685,-1444.68242888,0.00024858,2]
[387820428,1758891032694,-6270.9775951,0.00025657,2]
[387820429,1758891032703,-160.0,0.00025681,2]
[387820430,1758891032714,-233.71402077,0.00025688,2]
[387820431,1758891032723,-417.15472785,0.00025688,2]
[387820432,1758891032732,-722.26314578,0.00025732,2]
[387820433,1758891032756,-20.15765334,0.00025732,2]
[387820434,1758891032766,-183.185783,0.00025845,2]
[387820435,1758891032775,-503.042263,0.00026121,2]
[387820436,1758891032785,-1475.5069809,0.00026173,2]
[387820437,1758891032795,-200.0,0.00026329,15]
[387820438,1758891032805,-504.38548409,0.00026848,2]
[387820439,1758891032814,-273.26321903,0.00026848,2]
[387820440,1758891032823,-500.0,0.00026848,2]
[387820441,1758891032833,-500.0,0.00026848,2]
[387820442,1758891032843,-500.0,0.00026848,2]
[387820443,1758891032853,-622.09855444,0.00026848,2]
[387820444,1758891032863,-500.0,0.00026848,2]
[387820445,1758891032874,-500.0,0.00026848,2]
[387820446,1758891032883,-500.0,0.00026848,2]
[387820447,1758891032892,-500.0,0.00026848,2]
[387820448,1758891032901,-175.969,0.00026947,15]
[387820449,1758891032907,-176.285,0.00026947,15]
[387820450,1758891032916,-1000.0,0.00027035,2]
[387820451,1758891032923,-1444.68242888,0.00027338,7]
[387820452,1758891032930,-500.0,0.00027465,7]
[387820453,1758891032938,-1444.68242888,0.00028577,10]
[387820454,1758891032944,-341.76249946,0.000295,2]
[387820455,1758891032951,-500.0,0.000296,5]
[387820456,1758891032960,-500.0,0.000296,5]
[387820457,1758891032969,-500.0,0.000296,5]
[387820458,1758891032979,-1444.68242888,0.00029817,12]
[387820459,1758891032988,-1000.0,0.00030148,5]
[387820461,1758891032998,-506.0676098,0.00030148,5]
[387820463,1758891033007,-1000.0,0.00030148,5]
[387820464,1758891033017,-500.0,0.000302,2]
[387820465,1758891033027,-500.0,0.000302,5]
[387820466,1758891033038,-500.0,0.000302,5]
[387820467,1758891033048,-160.0,0.00030362,2]
[387820469,1758891033058,-1500.0,0.00030696,5]
[387820471,1758891033068,-1500.0,0.00030696,5]
[387820473,1758891033078,-329.89320392,0.00030748,2]
[387820475,1758891033089,-1000.0,0.00030748,5]
[387820477,1758891033099,-1000.0,0.00030748,5]
[387820478,1758891033109,-260.0,0.00030909,2]
[387820479,1758891033121,-1444.68242888,0.00031056,15]
[387820480,1758891033131,-1508.35320698,0.00031244,5]
[387820482,1758891033141,-2000.0,0.00031244,5]
[387820484,1758891033151,-155.0,0.00031279,2]
[387820486,1758891033161,-1500.0,0.00031296,5]
[387820488,1758891033171,-1500.0,0.00031296,5]
[387820490,1758891033181,-200.0,0.00031457,2]
[387820491,1758891033191,-2500.0,0.00031792,5]
[387820492,1758891033206,-2000.0,0.00031844,5]
[387820493,1758891033216,-2000.0,0.00031844,5]
[387820494,1758891033226,-177.4108125,0.00032,120]
[387820495,1758891033237,-1444.68242888,0.00032296,18]
[387820496,1758891033247,-177.4108125,0.000323,120]
[387820497,1758891033256,-3000.0,0.0003234,5]
[387820498,1758891033267,-500.0,0.00032392,5]
[387820499,1758891033276,-177.4108125,0.000326,120]
[387820500,1758891033286,-766.754593,0.00032877,2]
[387820501,1758891033295,-2764.42834004,0.00032888,5]
[387820502,1758891033306,-168.0,0.00033249,2]
[387820503,1758891033316,-168.0,0.00033274,2]
[387820504,1758891033326,-500.0,0.000333,5]
[387820505,1758891033337,-501.70713422,0.000333,5]
[387820506,1758891033347,-5000.0,0.00033492,4]
[387820507,1758891033358,-1444.68242888,0.00033536,20]
[387820508,1758891033370,-168.0,0.00033761,7]
[387820509,1758891033380,-500.0,0.00033785,7]
[387820510,1758891033391,-500.0,0.00033846,7]
[387820511,1758891033401,-1000.0,0.00033848,5]
[387820512,1758891033411,-168.0,0.0003475,2]
[387820513,1758891033421,-1444.68242888,0.00034775,23]
[387820514,1758891033431,-179.73040439,0.00034842,13]
[387820515,1758891033442,-300.91565364,0.00035,120]
[387820516,1758891033451,-168.0,0.00035446,2]
[387820517,1758891033465,-168.0,0.00035543,2]
[387820518,1758891033475,-168.0,0.00035971,2]
[387820519,1758891033484,-341.76249942,0.00035986,2]
[387820520,1758891033494,-1444.68242888,0.00036015,26]
[387820521,1758891033505,-500.0,0.00036803,30]
[387820522,1758891033514,-1444.68242888,0.00037254,28]
[387820523,1758891033524,-2966.71351328,0.00037377,2]
[387820524,1758891033534,-500.0,0.00037687,30]
[387820525,1758891033545,-500.0,0.00037946,30]
[387820526,1758891033555,-500.0,0.00038354,120]
[387820527,1758891033566,-502.09635083,0.00038355,120]
[387820528,1758891033576,-1000.0,0.00038355,2]
[387820529,1758891033586,-1000.0,0.00038355,2]
[387820530,1758891033596,-334.0,0.00038355,2]
[387820531,1758891033606,-766.754593,0.00038356,2]
[387820532,1758891033617,-1444.68242888,0.00038494,31]
[387820533,1758891033627,-500.0,0.00039176,120]
[387820534,1758891033636,-503.042263,0.00039181,2]
[387820535,1758891033646,-183.185783,0.00039543,60]
[387820536,1758891033655,-1444.68242888,0.00039733,34]
[387820537,1758891033664,-500.0,0.00039998,120]
[387820538,1758891033674,-635.0,0.00040014,2]
[387820539,1758891033685,-2160.0,0.00040014,2]
[387820540,1758891033694,-500.0,0.0004082,120]
[387820541,1758891033705,-1444.68242888,0.00040973,36]
[387820542,1758891033715,-4584.0,0.00041409,120]
[387820543,1758891033725,-500.0,0.00041642,120]
[387820544,1758891033735,-464.0,0.00042,120]
[387820545,1758891033745,-1444.68242888,0.00042213,39]
[387820546,1758891033755,-281.7030103,0.00042242,3]
[387820547,1758891033765,-1000.0,0.00042252,2]
[387820548,1758891033775,-1000.0,0.00042252,2]
[387820549,1758891033785,-1000.0,0.00042252,2]
[387820550,1758891033795,-1000.0,0.00042252,2]
[387820551,1758891033806,-1000.0,0.00042252,2]
[387820552,1758891033816,-1000.0,0.00042252,2]
[387820553,1758891033825,-1000.0,0.00042252,2]
[387820554,1758891033835,-1000.0,0.00042252,2]
[387820555,1758891033845,-1000.0,0.00042252,2]
[387820556,1758891033855,-1000.0,0.00042252,2]
[387820557,1758891033866,-1000.0,0.00042252,2]
[387820558,1758891033876,-1000.0,0.00042252,2]
[387820559,1758891033886,-1000.0,0.00042252,2]
[387820560,1758891033896,-757.08192936,0.00042252,2]
[387820561,1758891033906,-2578.71495372,0.000423,2]
[387820562,1758891033916,-7036.14625908,0.000423,2]
[387820563,1758891033925,-153.0,0.0004233,30]
[387820564,1758891033935,-153.0,0.0004233,30]
[387820565,1758891033945,-153.0,0.0004233,30]
[387820566,1758891033955,-153.0,0.0004233,30]
[387820567,1758891033965,-153.0,0.0004233,30]
[387820568,1758891033975,-153.0,0.0004233,30]
[387820569,1758891033985,-153.0,0.0004233,30]
[387820570,1758891033995,-153.0,0.0004233,30]
[387820571,1758891034005,-153.0,0.0004233,30]
[387820572,1758891034014,-153.0,0.0004233,30]
[387820573,1758891034024,-153.0,0.0004233,30]
[387820574,1758891034034,-153.0,0.0004233,30]
[387820575,1758891034044,-2253.6240824,0.0004239,3]
[387820576,1758891034054,-370000.0,0.000424,2]
[387820577,1758891034063,-500.0,0.00042464,120]
[387820578,1758891034073,-341.76249942,0.00042471,28]
[387820579,1758891034083,-5000.089,0.000425,100]
[387820580,1758891034093,-2578.7149537,0.00042575,2]
[387820581,1758891034103,-2578.7149537,0.0004285,2]
[387820582,1758891034112,-7036.14625907,0.0004285,2]
[387820583,1758891034123,-2578.7149537,0.00043125,2]
[387820584,1758891034133,-281.7030103,0.0004319,3]
[387820585,1758891034143,-5593.51422606,0.000432,120]
[387820586,1758891034153,-233.71402077,0.000432,120]
[387820587,1758891034163,-160.0,0.000432,120]
[387820588,1758891034173,-500.0,0.00043286,120]
[387820589,1758891034183,-160.0,0.000433,120]
[387820590,1758891034193,-160.0,0.000433,120]
[387820591,1758891034203,-151.0,0.00043376,3]
[387820592,1758891034212,-151.75518171,0.00043376,3]
[387820593,1758891034222,-151.0,0.00043376,3]
[387820594,1758891034231,-151.0,0.00043376,3]
[387820595,1758891034242,-500.0,0.00043376,3]
[387820596,1758891034252,-152.29099865,0.00043376,3]
[387820597,1758891034262,-500.0,0.00043376,3]
[387820598,1758891034272,-151.0,0.00043376,3]
[387820599,1758891034282,-151.66116134,0.00043376,3]
[387820600,1758891034291,-151.53827853,0.00043376,3]
[387820601,1758891034300,-151.0,0.00043376,3]
[387820602,1758891034309,-169.0,0.00043376,3]
[387820603,1758891034319,-151.0,0.00043376,3]
[387820604,1758891034328,-151.0,0.00043376,3]
[387820605,1758891034338,-151.0,0.00043376,3]
[387820606,1758891034348,-151.0,0.00043376,3]
[387820607,1758891034357,-151.0,0.00043376,3]
[387820608,1758891034366,-225.36110923,0.00043376,3]
[387820609,1758891034376,-151.0,0.00043376,3]
[387820610,1758891034386,-151.0,0.00043376,3]
[387820611,1758891034395,-151.0,0.00043376,3]
[387820612,1758891034405,-500.0,0.00043376,3]
[387820613,1758891034414,-151.0,0.00043376,3]